bitfinex/quotes_SOLUSD_20240822
["timestamp","ask_amount","ask_price","bid_price","bid_amount"]
[1724288396896,5.43156805,142.74,142.7,45.0]
[1724288397098,5.43156805,142.73,142.71,0.25098]
[1724288397295,5.43156805,142.72,142.71,0.25098]
[1724288398927,5.43156805,142.72,142.71,1.65220089]
[1724288400034,5.43156805,142.72,142.71,0.25098]
[1724288400425,5.43156805,142.72,142.71,13.45216641]
[1724288400727,7.2955075,142.77,142.71,58.45216641]
[1724288401029,5.43050939,142.76,142.72,45.0]
[1724288401228,5.43050939,142.75,142.73,1.65192861]
[1724288401434,5.43050939,142.74,142.73,1.65192861]
[1724288401604,7.2955075,142.77,142.73,12.05098]
[1724288401809,5.43020393,142.76,142.74,45.0]
[1724288402013,16.6152,142.79,142.74,45.0]
[1724288402014,16.6152,142.79,142.75,0.25098]
[1724288402632,16.6152,142.79,142.75,0.12549]
[1724288403214,28.4152,142.79,142.71,11.8]
[1724288403411,28.4152,142.79,142.72,45.25098]
[1724288403618,0.53654791,142.78,142.72,45.25098]
[1724288404005,0.53654791,142.78,142.72,45.0]
[1724288404199,0.53654791,142.78,142.7,11.8]
[1724288404510,0.53654791,142.78,142.71,20.0]
[1724288405727,0.53654791,142.78,142.67,18.46724738]
[1724288405728,11.8,142.77,142.68,11.8]
[1724288405911,35.4188,142.79,142.7,11.8]
[1724288406116,28.4152,142.79,142.7,11.8]
[1724288406423,16.6152,142.79,142.72,11.8]
[1724288406808,16.6152,142.79,142.68,8.31129438]
[1724288407013,16.6152,142.79,142.7,11.8]
[1724288407339,16.6152,142.79,142.71,45.25098]
[1724288409206,0.53654791,142.78,142.71,45.25098]
[1724288409429,11.8,142.76,142.71,45.12549]
[1724288409617,0.53654791,142.75,142.71,0.12549]
[1724288410009,0.53654791,142.75,142.67,27.8293]
[1724288410224,0.53654791,142.75,142.68,45.25098]
[1724288410814,11.8,142.76,142.68,45.25098]
[1724288411025,11.8,142.78,142.69,11.8]
[1724288411241,20.0,142.77,142.7,45.25098]
[1724288411615,20.0,142.77,142.71,11.8]
[1724288411816,20.0,142.78,142.72,45.12549]
[1724288412120,0.53654791,142.77,142.73,0.12549]
[1724288412327,20.0,142.78,142.73,0.12549]
[1724288413032,0.53654791,142.77,142.73,0.12549]
[1724288413216,0.53654791,142.77,142.69,11.8]
[1724288413425,0.53654791,142.77,142.7,45.25098]
[1724288415211,31.8,142.78,142.7,45.25098]
[1724288416023,20.0,142.78,142.72,11.8]
[1724288416546,23.90598293,142.79,142.73,1.52655175]
[1724288416841,23.90598293,142.79,142.73,46.65204175]
[1724288417211,23.90598293,142.79,142.73,45.25098]
[1724288417409,16.6152,142.79,142.74,1.40095059]
[1724288417615,16.6152,142.79,142.75,0.12549]
[1724288418241,16.6152,142.79,142.74,0.12549]
[1724288420126,15.6881,142.83,142.76,11.8]
[1724288420629,15.6881,142.83,142.77,0.12549]
[1724288421520,15.6881,142.83,142.77,46.65158419]
[1724288422821,15.6881,142.83,142.77,45.25098]
[1724288423023,0.53654791,142.82,142.77,45.25098]
[1724288423224,0.53654791,142.82,142.77,0.25098]
[1724288423746,0.53654791,142.82,142.72,38.68805552]
[1724288423747,0.53654791,142.82,142.73,11.8]
[1724288423950,11.8,142.82,142.74,20.0]
[1724288424317,0.53654791,142.81,142.74,20.0]
[1724288425239,0.53654791,142.81,142.75,45.25098]
[1724288425546,11.8,142.82,142.75,45.25098]
[1724288425952,0.53654791,142.82,142.75,57.05098]
[1724288426360,15.6881,142.83,142.75,57.05098]
[1724288426926,15.6881,142.83,142.76,1.40058779]
[1724288427146,15.6881,142.83,142.77,0.25098]
[1724288427732,0.53654791,142.82,142.76,0.25098]
[1724288427931,15.6881,142.83,142.76,0.25098]
[1724288428348,0.53654791,142.82,142.76,0.25098]
[1724288429831,15.6881,142.83,142.77,11.8]
[1724288430159,16.3471,142.88,142.79,11.8]
[1724288430365,23.6396608,142.88,142.81,11.8]
[1724288430738,0.53654791,142.87,142.82,0.12549]
[1724288431443,23.6396608,142.88,142.82,0.12549]
[1724288431953,20.0,142.87,142.82,0.12549]
[1724288432164,0.53654791,142.86,142.8,0.12549]
[1724288432459,11.8,142.83,142.74,29.9041]
[1724288432673,11.8,142.83,142.75,11.8]
[1724288432871,0.53654791,142.82,142.76,20.0]
[1724288433341,0.53654791,142.84,142.76,20.0]
[1724288433529,15.3709,142.83,142.76,20.0]
[1724288433731,15.3709,142.83,142.73,6.314]
[1724288433732,0.53654791,142.82,142.73,6.314]
[1724288433927,0.53654791,142.82,142.74,31.8]
[1724288435735,0.53654791,142.82,142.75,45.25098]
[1724288436462,0.53654791,142.82,142.74,31.8]
[1724288437762,0.53654791,142.82,142.75,45.25098]
[1724288441168,22.66396604,142.83,142.75,45.25098]
[1724288442653,0.53654791,142.82,142.75,45.25098]
[1724288443366,22.66396604,142.83,142.75,45.25098]
[1724288443965,0.53654791,142.82,142.75,45.25098]
[1724288444840,12.33654791,142.82,142.74,20.0]
[1724288445150,11.8,142.8,142.72,11.8]
[1724288445355,0.53654791,142.79,142.72,11.8]
[1724288445942,15.7551,142.78,142.7,9.9041]
[1724288446160,0.53654791,142.77,142.71,11.8]
[1724288447470,0.53654791,142.77,142.68,8.79879438]
[1724288447971,0.53654791,142.77,142.68,20.59879438]
[1724288448756,0.53654791,142.77,142.7,11.8]
[1724288449069,0.53654791,142.77,142.71,0.25098]
[1724288449449,15.7551,142.78,142.72,11.8]
[1724288449775,15.7551,142.78,142.73,0.12549]
[1724288450079,11.8,142.76,142.68,11.8]
[1724288450261,0.53654791,142.75,142.68,11.8]
[1724288451077,11.8,142.76,142.68,11.8]
[1724288451476,15.2149,142.74,142.66,11.8]
[1724288451661,7.17564791,142.73,142.67,20.0]
[1724288451862,7.17564791,142.73,142.66,11.8]
[1724288452751,7.0073,142.71,142.64,8.79879438]
[1724288453084,7.0073,142.71,142.63,0.8578912]
[1724288453085,15.4909,142.69,142.63,0.8578912]
[1724288453384,16.02744791,142.69,142.63,0.8578912]
[1724288455778,15.4909,142.69,142.64,13.32729828]
[1724288455990,15.4909,142.69,142.64,11.92549]
[1724288456459,15.4909,142.69,142.64,0.12549]
[1724288456662,15.4909,142.69,142.64,45.25098]
[1724288456853,15.4909,142.69,142.65,1.40166222]
[1724288457077,15.4909,142.69,142.66,0.25098]
[1724288458975,15.4909,142.69,142.65,1.6526168]
[1724288459158,15.4909,142.69,142.65,0.25098]
[1724288459986,15.4909,142.69,142.65,1.6526386]
[1724288460285,15.4909,142.69,142.65,31.40263674]
[1724288460469,22.0453,142.73,142.66,45.0]
[1724288460678,22.0453,142.73,142.67,30.00098]
[1724288460987,22.0453,142.73,142.68,45.0]
[1724288461163,15.4062,142.73,142.69,31.40225256]
[1724288461363,15.4062,142.73,142.7,45.0]
[1724288461551,15.4062,142.73,142.71,1.52663604]
[1724288461757,15.4062,142.73,142.71,0.25098]
[1724288462483,15.4062,142.73,142.71,0.12549]
[1724288462678,15.4062,142.73,142.68,20.0]
[1724288462872,15.4062,142.73,142.69,45.25098]
[1724288463605,15.4062,142.73,142.69,0.25098]
[1724288465372,15.4062,142.73,142.68,1.65232064]
[1724288465686,15.4062,142.73,142.68,66.65232064]
[1724288465858,15.4062,142.73,142.69,45.0]
[1724288466053,15.4062,142.73,142.7,1.52683888]
[1724288466281,15.4062,142.73,142.7,0.12549]
[1724288466483,15.4062,142.73,142.7,0.25098]
[1724288467175,15.4062,142.73,142.7,1.65220947]
[1724288467360,6.524,142.76,142.7,1.65220947]
[1724288467762,15.0144,142.77,142.71,29.75]
[1724288467962,15.0144,142.77,142.72,45.25098]
[1724288468177,15.0144,142.77,142.73,1.40088796]
[1724288468376,15.0144,142.77,142.74,0.25098]
[1724288468691,15.0144,142.77,142.75,0.12549]
[1724288468891,15.0144,142.77,142.72,45.25098]
[1724288469971,15.0144,142.77,142.73,1.4009972]
[1724288470177,15.0144,142.77,142.74,0.25098]
[1724288470487,15.0144,142.77,142.74,0.12549]
[1724288470665,15.0144,142.77,142.73,0.25098]
[1724288470868,15.0144,142.77,142.73,31.40200601]
[1724288471110,15.0144,142.77,142.74,45.0]
[1724288471274,15.0144,142.77,142.75,0.12549]
[1724288471472,15.0144,142.77,142.75,1.65180395]
[1724288472000,6.5943,142.8,142.75,1.65180395]
[1724288472166,15.8987,142.81,142.75,31.40180395]
[1724288472371,15.8987,142.81,142.76,45.0]
[1724288472590,15.8987,142.81,142.77,1.65143518]
[1724288472974,15.8987,142.81,142.77,31.40143518]
[1724288473175,15.8987,142.81,142.78,45.0]
[1724288473404,16.359,142.85,142.79,1.65137893]
[1724288473611,16.359,142.85,142.8,1.40030911]
[1724288473774,16.359,142.85,142.81,0.25098]
[1724288473975,16.359,142.85,142.81,1.65118223]
[1724288474679,16.359,142.85,142.81,0.25098]
[1724288475072,16.89554791,142.85,142.81,0.25098]
[1724288476075,16.359,142.85,142.81,0.12549]
[1724288477866,16.89554791,142.85,142.81,0.12549]
[1724288478078,16.89554791,142.85,142.8,0.12549]
[1724288478293,16.89554791,142.85,142.79,45.25098]
[1724288479383,16.89554791,142.85,142.78,20.0]
[1724288479706,16.89554791,142.85,142.76,20.0]
[1724288479707,16.359,142.85,142.76,20.0]
[1724288479873,16.359,142.85,142.74,20.0]
[1724288480074,16.359,142.85,142.74,28.79879438]
[1724288480277,0.53654791,142.84,142.74,28.79879438]
[1724288480481,16.359,142.85,142.74,28.79879438]
[1724288480679,16.359,142.85,142.75,45.0]
[1724288480903,16.359,142.85,142.76,20.25098]
[1724288481082,16.359,142.85,142.77,45.0]
[1724288481283,16.359,142.85,142.78,0.25098]
[1724288482006,0.53654791,142.84,142.78,0.25098]
[1724288482583,0.53654791,142.84,142.78,0.12549]
[1724288484202,20.53654791,142.84,142.78,0.12549]
[1724288485497,30.28654791,142.84,142.78,0.12549]
[1724288486299,6.176,142.82,142.74,20.0]
[1724288486501,0.53654791,142.81,142.75,45.25098]
[1724288487286,15.6966,142.8,142.72,20.0]
[1724288488011,0.53654791,142.79,142.72,20.0]
[1724288488315,0.53654791,142.79,142.71,29.75]
[1724288488686,0.53654791,142.79,142.7,8.79879438]
[1724288488905,45.4466,142.8,142.7,8.79879438]
[1724288489991,0.53654791,142.79,142.71,65.25098]
[1724288490190,0.53654791,142.79,142.71,20.12549]
[1724288491716,0.53654791,142.79,142.72,0.12549]
[1724288494216,20.53654791,142.79,142.72,0.12549]
[1724288494413,20.53654791,142.79,142.71,45.25098]
[1724288495988,6.3583,142.78,142.71,45.25098]
[1724288496190,0.53654791,142.77,142.71,45.25098]
[1724288496719,16.5209,142.76,142.71,45.25098]
[1724288497091,0.53654791,142.75,142.71,45.12549]
[1724288497286,0.53654791,142.75,142.71,0.12549]
[1724288497497,11.89,142.74,142.65,20.56034211]
[1724288497827,16.1692,142.72,142.65,20.56034211]
[1724288498129,0.53654791,142.71,142.65,20.56034211]
[1724288499326,0.53654791,142.71,142.66,45.25098]
[1724288502324,0.53654791,142.71,142.63,0.8578912]
[1724288502511,50.28654791,142.71,142.63,0.8578912]
[1724288502716,0.53654791,142.7,142.63,0.8578912]
[1724288503722,0.53654791,142.7,142.64,0.25098]
[1724288504027,0.53654791,142.71,142.64,0.25098]
[1724288504231,16.70574791,142.72,142.64,45.25098]
[1724288505128,16.1692,142.72,142.64,45.25098]
[1724288505429,0.53654791,142.71,142.64,45.25098]
[1724288506112,0.53654791,142.71,142.64,0.25098]
[1724288506711,0.53654791,142.7,142.63,0.8578912]
[1724288507023,16.2428,142.69,142.63,0.8578912]
[1724288507223,16.2428,142.69,142.63,2.25982063]
[1724288507731,16.2428,142.69,142.63,0.8578912]
[1724288507937,0.53654791,142.68,142.63,0.8578912]
[1724288508126,6.468,142.68,142.63,45.8578912]
[1724288508315,6.468,142.68,142.63,0.8578912]
[1724288509114,6.468,142.68,142.64,0.12549]
[1724288510748,6.468,142.68,142.64,1.65284128]
[1724288511122,6.468,142.68,142.64,0.25098]
[1724288512644,0.53654791,142.67,142.64,0.12549]
[1724288514218,6.468,142.68,142.64,0.12549]
[1724288514441,0.53654791,142.67,142.64,0.12549]
[1724288515238,6.468,142.68,142.64,0.12549]
[1724288515729,6.468,142.68,142.64,1.65294797]
[1724288516545,6.468,142.68,142.64,0.25098]
[1724288516749,7.00454791,142.68,142.64,0.25098]
[1724288516930,0.53654791,142.67,142.64,0.12549]
[1724288517126,7.00454791,142.68,142.64,0.12549]
[1724288519024,6.468,142.68,142.64,0.12549]
[1724288519224,6.468,142.68,142.64,0.25098]
[1724288519958,7.00454791,142.68,142.64,0.25098]
[1724288520159,7.00454791,142.68,142.64,0.12549]
[1724288520464,6.468,142.68,142.64,0.12549]
[1724288520759,6.468,142.68,142.64,0.25098]
[1724288521847,6.468,142.68,142.64,0.12549]
[1724288522148,6.468,142.68,142.64,0.25098]
[1724288522541,6.468,142.68,142.64,12.15098]
[1724288522855,6.468,142.68,142.65,45.0]
[1724288523061,6.468,142.68,142.66,0.12549]
[1724288526342,6.468,142.68,142.64,12.02549]
[1724288526560,6.468,142.68,142.65,0.12549]
[1724288527581,6.468,142.68,142.65,0.25098]
[1724288528661,6.468,142.68,142.66,0.12549]
[1724288528862,6.468,142.68,142.64,45.25098]
[1724288529064,16.2428,142.69,142.65,13.30178222]
[1724288529284,16.2428,142.69,142.67,11.9]
[1724288529613,6.5408,142.72,142.68,1.65248851]
[1724288529762,16.1781,142.73,142.69,11.9]
[1724288529960,16.1781,142.73,142.7,1.52674233]
[1724288530161,16.1781,142.73,142.71,0.12549]
[1724288530471,16.1781,142.73,142.71,1.52674374]
[1724288530655,16.1781,142.73,142.71,0.12549]
[1724288530855,16.1781,142.73,142.7,0.25098]
[1724288531585,16.1781,142.73,142.7,0.12549]
[1724288531883,0.53654791,142.72,142.7,0.12549]
[1724288532067,0.53654791,142.72,142.67,11.9]
[1724288532271,0.53654791,142.72,142.68,0.25098]
[1724288532469,0.53654791,142.72,142.68,0.12549]
[1724288533280,6.55574791,142.72,142.65,11.9]
[1724288533468,6.0192,142.72,142.66,1.40173655]
[1724288533673,6.0192,142.72,142.66,11.9]
[1724288534482,6.55574791,142.72,142.66,11.9]
[1724288534687,6.0192,142.72,142.67,0.12549]
[1724288535091,6.0192,142.72,142.67,0.25098]
[1724288535682,6.0192,142.72,142.68,11.9]
[1724288536002,6.0192,142.72,142.69,0.12549]
[1724288538190,6.0192,142.72,142.69,1.65242508]
[1724288538368,6.0192,142.72,142.69,0.25098]
[1724288538988,16.1781,142.73,142.69,46.65237641]
[1724288539197,16.1781,142.73,142.7,11.9]
[1724288539380,6.0929,142.76,142.72,11.9]
[1724288539692,6.0929,142.76,142.73,1.52658328]
[1724288540080,15.4938,142.77,142.73,1.52658328]
[1724288540793,15.4938,142.77,142.74,1.5265072]
[1724288541171,15.4938,142.77,142.75,0.12549]
[1724288541371,6.1313,142.8,142.75,0.12549]
[1724288541596,15.8423,142.81,142.76,29.72]
[1724288541899,15.8423,142.81,142.77,46.52599627]
[1724288542099,15.8423,142.81,142.78,0.12549]
[1724288542405,15.8423,142.81,142.78,1.52603213]
[1724288542601,15.8423,142.81,142.79,0.12549]
[1724288543467,15.8423,142.81,142.73,29.72]
[1724288543777,15.8423,142.81,142.74,65.25098]
[1724288544171,0.53654791,142.8,142.74,65.0]
[1724288544368,0.53654791,142.8,142.71,29.72]
[1724288544564,20.53654791,142.8,142.71,29.72]
[1724288544772,0.53654791,142.79,142.71,29.72]
[1724288545607,0.53654791,142.79,142.72,0.25098]
[1724288545778,20.0,142.8,142.72,54.374011]
[1724288545975,20.53654791,142.8,142.72,54.374011]
[1724288546208,0.53654791,142.79,142.72,54.374011]
[1724288547081,0.53654791,142.79,142.72,45.25098]
[1724288549173,20.0,142.8,142.72,45.25098]
[1724288551884,0.53654791,142.79,142.72,45.25098]
[1724288552300,20.0,142.8,142.72,45.25098]
[1724288552990,0.53654791,142.79,142.72,45.25098]
[1724288554788,20.0,142.8,142.72,45.25098]
[1724288556377,0.53654791,142.79,142.72,45.25098]
[1724288556991,0.53654791,142.79,142.72,0.25098]
[1724288557992,20.0,142.8,142.72,0.25098]
[1724288559614,0.53654791,142.79,142.72,0.25098]
[1724288559916,16.5611,142.77,142.64,2.43548807]
[1724288560214,0.53654791,142.76,142.67,6.3904]
[1724288560517,11.9,142.75,142.67,11.9]
[1724288560726,0.53654791,142.74,142.67,11.9]
[1724288561693,0.53654791,142.74,142.64,19.027131]
[1724288561893,0.53654791,142.74,142.67,11.9]
[1724288562493,0.53654791,142.74,142.66,29.74]
[1724288562692,20.0,142.76,142.68,29.74]
[1724288563023,16.5611,142.77,142.69,45.25098]
[1724288563195,20.0,142.76,142.69,45.25098]
[1724288563817,0.53654791,142.75,142.69,45.25098]
[1724288565527,20.0,142.76,142.65,9.123031]
[1724288565832,27.0048,142.76,142.66,20.0]
[1724288565999,6.4824,142.74,142.65,9.123031]
[1724288566322,15.9369,142.72,142.65,9.123031]
[1724288566619,0.53654791,142.71,142.63,39.05776335]
[1724288566799,0.53654791,142.71,142.63,0.8578912]
[1724288567292,15.9369,142.72,142.63,2.2595939]
[1724288567486,15.9369,142.72,142.63,0.8578912]
[1724288567701,0.53654791,142.71,142.63,0.8578912]
[1724288568612,0.53654791,142.71,142.64,0.25098]
[1724288568928,30.27654791,142.71,142.64,0.25098]
[1724288569125,0.53654791,142.7,142.63,0.8578912]
[1724288569620,29.74,142.71,142.63,0.8578912]
[1724288569992,0.53654791,142.7,142.63,0.8578912]
[1724288570395,15.9369,142.72,142.64,0.12549]
[1724288570601,20.0,142.71,142.64,0.25098]
[1724288570814,0.53654791,142.7,142.64,0.25098]
[1724288571736,20.0,142.71,142.64,0.25098]
[1724288572095,0.53654791,142.7,142.64,0.25098]
[1724288572296,20.0,142.71,142.64,0.25098]
[1724288572734,0.53654791,142.7,142.64,0.25098]
[1724288574736,20.0,142.71,142.64,0.25098]
[1724288575320,15.9369,142.72,142.64,31.39273816]
[1724288575520,15.9369,142.72,142.65,45.0]
[1724288575709,15.9369,142.72,142.66,0.25098]
[1724288576923,15.9369,142.72,142.66,1.6525664]
[1724288578441,15.9369,142.72,142.66,31.3925438]
[1724288578617,15.9369,142.72,142.67,45.0]
[1724288578820,0.53654791,142.73,142.68,0.25098]
[1724288579021,20.0,142.75,142.68,0.12549]
[1724288579228,49.74,142.75,142.68,0.12549]
[1724288580043,20.0,142.75,142.68,0.12549]
[1724288580244,0.53654791,142.74,142.68,0.12549]
[1724288581745,49.74,142.75,142.68,0.12549]
[1724288582643,11.9,142.73,142.64,11.9]
[1724288582940,0.53654791,142.72,142.64,11.9]
[1724288584042,0.53654791,142.72,142.65,0.25098]
[1724288584838,0.53654791,142.72,142.65,45.25098]
[1724288585045,11.9,142.73,142.65,45.25098]
[1724288585618,11.9,142.73,142.65,46.65278311]
[1724288585941,11.9,142.73,142.65,45.25098]
[1724288586949,11.9,142.73,142.65,0.12549]
[1724288586950,0.53654791,142.72,142.65,0.12549]
[1724288587116,20.53654791,142.72,142.64,0.25098]
[1724288587442,20.53654791,142.72,142.64,45.25098]
[1724288587850,27.8955,142.71,142.64,45.25098]
[1724288588154,0.53654791,142.7,142.64,45.25098]
[1724288588649,0.53654791,142.7,142.63,0.8578912]
[1724288589225,11.9,142.69,142.63,0.8578912]
[1724288590143,29.81274791,142.71,142.63,0.8578912]
[1724288590450,32.43654791,142.7,142.63,0.8578912]
[1724288590635,32.43654791,142.7,142.64,0.12549]
[1724288590835,31.9,142.7,142.63,0.8578912]
[1724288591037,0.53654791,142.69,142.63,0.8578912]
[1724288592356,31.9,142.7,142.63,0.8578912]
[1724288592959,31.9,142.7,142.64,0.12549]
[1724288593152,0.53654791,142.69,142.63,0.8578912]
[1724288596357,11.9,142.68,142.63,0.8578912]
[1724288596657,0.53654791,142.67,142.63,0.8578912]
[1724288596834,20.53654791,142.67,142.63,0.8578912]
[1724288597038,11.9,142.66,142.63,0.8578912]
[1724288597247,0.53654791,142.65,142.63,0.8578912]
[1724288597660,11.9,142.64,142.63,0.8578912]
[1724288597962,12.43654791,142.64,142.63,0.8578912]
[1724288598260,20.0,142.65,142.63,0.8578912]
[1724288599661,16.2129,142.66,142.63,0.8578912]
[1724288599865,20.0,142.65,142.63,0.8578912]
[1724288600465,16.2129,142.66,142.63,0.8578912]
[1724288601159,11.9,142.68,142.63,0.8578912]
[1724288601455,20.0,142.67,142.63,0.8578912]
[1724288601864,15.479,142.69,142.63,12.7578912]
[1724288602167,28.3722,142.72,142.64,0.12549]
[1724288602472,11.9,142.7,142.64,0.12549]
[1724288602657,0.53654791,142.69,142.63,0.8578912]
[1724288603368,20.53654791,142.69,142.63,0.8578912]
[1724288603742,20.0,142.69,142.63,0.8578912]
[1724288604649,0.53654791,142.68,142.63,0.8578912]
[1724288605343,20.0,142.69,142.63,0.8578912]
[1724288605543,20.0,142.69,142.64,12.02549]
[1724288605756,20.0,142.71,142.64,12.02549]
[1724288606955,20.0,142.71,142.64,13.42738111]
[1724288607672,35.65759553,142.72,142.65,1.40187348]
[1724288607973,28.3722,142.72,142.66,0.12549]
[1724288608854,20.0,142.71,142.66,0.12549]
[1724288609843,0.53654791,142.7,142.66,0.12549]
[1724288610168,0.53654791,142.7,142.65,0.12549]
[1724288611239,20.0,142.71,142.65,0.12549]
[1724288611672,0.53654791,142.7,142.64,45.25098]
[1724288611864,0.53654791,142.7,142.63,29.1364912]
[1724288612744,12.43654791,142.7,142.63,17.2364912]
[1724288613274,11.9,142.68,142.63,0.8578912]
[1724288613568,0.53654791,142.67,142.63,0.8578912]
[1724288614552,11.9,142.68,142.63,0.8578912]
[1724288615455,11.9,142.7,142.63,0.8578912]
[1724288615638,20.0,142.69,142.64,0.12549]
[1724288616947,0.53654791,142.68,142.64,0.12549]
[1724288617365,0.53654791,142.68,142.63,0.8578912]
[1724288619472,39.18228263,142.7,142.63,0.8578912]
[1724288619657,0.53654791,142.69,142.63,0.8578912]
[1724288621851,11.9,142.66,142.63,0.8578912]
[1724288622057,0.53654791,142.65,142.63,0.8578912]
[1724288622444,16.4539,142.68,142.63,0.8578912]
[1724288622646,20.0,142.67,142.63,0.8578912]
[1724288622875,16.4539,142.68,142.63,0.8578912]
[1724288623090,7.28228263,142.7,142.63,0.8578912]
[1724288623245,20.0,142.69,142.63,0.8578912]
[1724288623654,20.0,142.69,142.64,0.25098]
[1724288623857,20.0,142.69,142.64,45.25098]
[1724288624162,7.28228263,142.7,142.64,45.12549]
[1724288624349,7.28228263,142.7,142.64,0.12549]
[1724288624661,0.53654791,142.69,142.64,0.12549]
[1724288624874,7.28228263,142.7,142.64,0.12549]
[1724288625586,7.28228263,142.7,142.64,45.25098]
[1724288627073,0.53654791,142.69,142.64,45.25098]
[1724288629500,0.53654791,142.69,142.64,0.12549]
[1724288630498,19.18228263,142.7,142.64,0.12549]
[1724288630807,19.18228263,142.7,142.64,0.25098]
[1724288631474,0.53654791,142.69,142.64,0.25098]
[1724288631675,7.28228263,142.7,142.64,0.25098]
[1724288631877,7.28228263,142.7,142.64,46.65286735]
[1724288632377,7.28228263,142.7,142.64,45.25098]
[1724288634674,11.9,142.75,142.65,23.20596958]
[1724288635002,7.27839104,142.75,142.67,11.9]
[1724288635167,15.8574,142.76,142.68,45.25098]
[1724288635367,15.8574,142.76,142.68,46.65241172]
[1724288635572,7.2777346,142.77,142.69,13.30142757]
[1724288635877,7.2777346,142.77,142.71,11.9]
[1724288636180,34.7602,142.8,142.72,46.65217471]
[1724288636387,42.04499093,142.8,142.72,45.25098]
[1724288637398,0.53654791,142.79,142.72,45.25098]
[1724288637772,35.04219093,142.8,142.73,1.4011015]
[1724288638089,27.7574,142.8,142.74,0.12549]
[1724288638409,15.8574,142.8,142.74,0.12549]
[1724288638704,0.53654791,142.79,142.74,0.12549]
[1724288638889,0.53654791,142.79,142.73,0.12549]
[1724288639202,20.53654791,142.79,142.73,0.12549]
[1724288640498,20.0,142.79,142.73,0.12549]
[1724288641177,20.0,142.8,142.73,0.12549]
[1724288642021,20.0,142.8,142.73,12.02549]
[1724288642692,20.0,142.81,142.74,45.12549]
[1724288643010,20.0,142.81,142.75,0.12549]
[1724288643684,20.0,142.82,142.75,0.12549]
[1724288644800,20.0,142.82,142.75,13.42634597]
[1724288645102,20.0,142.82,142.76,0.12549]
[1724288645992,22.1524,142.87,142.77,11.9]
[1724288646196,22.1524,142.87,142.76,0.12549]
[1724288646197,11.9,142.85,142.78,0.12549]
[1724288646380,18.9003,142.85,142.76,0.12549]
[1724288646579,18.9003,142.85,142.76,45.12549]
[1724288646781,18.9003,142.85,142.77,0.12549]
[1724288647196,20.0,142.84,142.77,0.12549]
[1724288647411,20.0,142.84,142.78,6.1332]
[1724288647588,0.53654791,142.83,142.79,0.12549]
[1724288648299,20.0,142.84,142.79,0.12549]
[1724288648498,31.9,142.86,142.79,0.12549]
[1724288649014,11.9,142.84,142.75,16.0373]
[1724288649193,11.9,142.82,142.75,16.0373]
[1724288650484,0.53654791,142.81,142.76,45.25098]
[1724288651005,0.53654791,142.81,142.76,0.12549]
[1724288651386,11.9,142.82,142.76,0.12549]
[1724288651686,0.53654791,142.81,142.76,0.12549]
[1724288651912,0.53654791,142.81,142.75,16.0373]
[1724288653306,18.9028,142.8,142.71,16.4742]
[1724288653512,0.53654791,142.79,142.72,20.0]
[1724288654021,11.9,142.8,142.72,20.0]
[1724288654619,0.53654791,142.79,142.73,0.25098]
[1724288654797,11.9,142.81,142.73,45.25098]
[1724288655190,0.53654791,142.8,142.73,45.25098]
[1724288657589,0.53654791,142.8,142.73,0.12549]
[1724288657590,12.43654791,142.79,142.73,0.12549]
[1724288657789,11.9,142.77,142.71,16.4742]
[1724288658015,0.53654791,142.76,142.71,16.4742]
[1724288659597,11.9,142.75,142.71,6.5701]
[1724288659798,0.53654791,142.74,142.68,9.9041]
[1724288660009,0.53654791,142.74,142.69,65.25098]
[1724288660396,0.53654791,142.74,142.69,45.0]
[1724288660596,0.53654791,142.74,142.68,9.9041]
[1724288661012,11.9,142.75,142.68,9.9041]
[1724288661205,45.0,142.81,142.7,11.9]